[Event "Gibraltar Junior Intl U16 2019"]
[Site "Caleta"]
[Date "2019.08.19"]
[Round "6.3"]
[White "Llena Velarde, David"]
[Black "Kracht, Raphael"]
[Result "1-0"]
[ECO "C54"]
[WhiteElo "1920"]
[BlackElo "2072"]
[Annotator "NA RC"]
[PlyCount "71"]
[EventDate "2019.08.16"]
[EventType "swiss"]
[EventCountry "GGB"]
[SourceTitle "playchess.com"]
[Source "ChessBase"]
[SourceQuality "1"]
[TimeControl "6600+10"]

{[%evp 8,70,25,17,21,12,15,32767,-6,32767,32767,32767,32767,32767,22,-23,-16,-22,-6,-18,32767,-12,7,8,32767,-12,32,0,32767,0,6,32767,-2,0,0,0,32767,0,32767,32767,-10,0,128,-20,-1,32767,32767,32767,558,647,670,32767,666,32767,572,626,32767,32767,32767,1200,1784,6170,2232,5812,6283]} 1. e4 {[%emt 0:00:00]} e5 {[%emt 0:00:00]} 2. Nf3 {[%emt 0:00:00]} Nc6 {[%emt 0:00:00]} 3. Bc4 {[%emt 0:00:09]} Bc5 {[%emt 0:00:01]} 4. c3 {[%emt 0:00:20]} Nf6 {[%emt 0:00:05]} 5. d3 {[%emt 0:00:15]} O-O {[%emt 0:00:10]} 6. b4 {[%emt 0:00:14]} Bb6 {[%emt 0:01:43]} 7. O-O {[%emt 0:00:11]} d6 {[%emt 0:11:09]} 8. Nbd2 {[%emt 0:01:53]} a5 {[%emt 0:02:28]} 9. b5 {[%emt 0:01:05]} Ne7 {[%emt 0:00:05]} 10. Bb3 {[%emt 0:00:21]} c6 {[%emt 0:01:37]} 11. a4 {[%emt 0:04:40]} Ng6 {[%emt 0:12:35]} 12. Nc4 {[%emt 0:00:11] C54: Giuoco Piano: 4 c3 Nf6, main lines with 5 d4 and 5 d3} Bc7 {[%emt 0:02:23]} 13. Ba3 {[%emt 0:01:52]} (13. Re1 Be6 14. Ba3 Re8 15. Ng5 Bxc4 16. Bxc4 d5 17. Ba2 Bd6 18. Bxd6 Qxd6 19. Rb1 h6 {0-1 (42) Ganguly,S (2615)-Karjakin,S (2753) Kolkata 2018}) 13... d5 {[%emt 0:03:39]} 14. Ne3 {[%emt 0:18:53]} Bd6 $146 {[%emt 0:02:09]} ({Predecessor:} 14... Re8 15. g3 h6 16. Nd2 Bh3 17. Re1 Bb6 18. exd5 cxd5 19. Bb2 Qd7 {0-1 (56) Baranowski,T (2351)-Kuzmin,V (2383) ICCF email 2016}) 15. Bxd6 {[%emt 0:10:24]} Qxd6 {[%emt 0:00:07]} 16. Qc2 {[%emt 0:01:30]} Ng4 {[%emt 0:10:41]} 17. bxc6 {[%emt 0:02:25]} bxc6 {[%emt 0:00:59]} 18. exd5 {[%emt 0:02:13]} Nxe3 {[%emt 0:05:57]} 19. fxe3 {[%emt 0:00:07]} cxd5 {[%emt 0:00:15]} 20. c4 {[%emt 0:07:21]} dxc4 {[%emt 0:04:08]} 21. Bxc4 {[%emt 0:00:20]} ({Don't play} 21. dxc4 Qc5 $15) 21... Be6 {[%emt 0:04:00]} 22. Ng5 {[%emt 0:02:08]} Bxc4 {[%emt 0:00:36]} 23. Qxc4 {[%emt 0:00:05]} Qe7 {[%emt 0:00:27]} 24. Qg4 {[%emt 0:07:05]} Qd6 {[%emt 0:21:15] [#]} (24... Qa7 $11 {remains equal.} 25. Rae1 h6) 25. Rad1 {[%emt 0:04:58]} (25. Nxf7 $1 $16 Qd5 26. Ng5) 25... h6 {[%emt 0:02:16]} 26. Nxf7 {[%emt 0:00:10]} Rxf7 {[%emt 0:01:21]} 27. Rxf7 {[%emt 0:00:06]} Rf8 {[%emt 0:05:30]} 28. Rxf8+ {[%emt 0:00:08]} Nxf8 {[%emt 0:00:04]} 29. d4 {[%emt 0:00:45]} Qb4 {[%emt 0:00:41]} (29... Qa3 $142 30. Qe4 Qxa4) 30. Qf3 {[%emt 0:01:00]} exd4 {[%emt 0:00:46]} 31. Qd5+ {[%emt 0:00:14]} Kh7 {[%emt 0:00:24]} 32. Qxd4 {[%emt 0:01:01]} Qb7 {[%emt 0:01:30]} 33. Qd3+ {[%emt 0:00:57]} Kh8 {[%emt 0:00:27] [#]} 34. Qd8 $1 {[%emt 0:00:08]} Qb4 {[%emt 0:00:12]} 35. Rf1 {[%emt 0:00:43]} Kg8 $18 {[%emt 0:00:09]} 36. Qe8 {[%emt 0:00:06]} 1-0

[Event "Gibraltar Junior Intl U16 2019"]
[Site "Caleta"]
[Date "2019.08.19"]
[Round "6.5"]
[White "Tadevosyan, Aspet"]
[Black "Tombolis, Christopher"]
[Result "1/2-1/2"]
[ECO "E05"]
[WhiteElo "2038"]
[BlackElo "1874"]
[Annotator "NA"]
[PlyCount "147"]
[EventDate "2019.08.16"]
[EventType "swiss"]
[EventCountry "GGB"]
[SourceTitle "playchess.com"]
[Source "ChessBase"]
[SourceQuality "1"]
[TimeControl "6600+10"]

1. d4 {[%emt 0:00:00]} Nf6 {[%emt 0:00:00]} 2. c4 {[%emt 0:00:02]} e6 {[%emt 0:00:02]} 3. Nf3 {[%emt 0:00:09]} d5 {[%emt 0:00:06]} 4. g3 {[%emt 0:00:07]} Be7 {[%emt 0:00:36]} 5. Bg2 {[%emt 0:00:08]} O-O {[%emt 0:00:07]} 6. O-O {[%emt 0:00:10]} dxc4 {[%emt 0:00:07]} 7. Qc2 {[%emt 0:00:14]} a6 {[%emt 0:00:04]} 8. a4 {[%emt 0:00:11]} Bd7 {[%emt 0:00:05]} 9. Rd1 {[%emt 0:00:14]} Bc6 {[%emt 0:02:14]} 10. Nc3 {[%emt 0:00:14]} Bxf3 {[%emt 0:10:11]} 11. Bxf3 {[%emt 0:00:15]} Nc6 {[%emt 0:00:09]} 12. Bxc6 {[%emt 0:00:27]} bxc6 {[%emt 0:00:02]} 13. Bg5 {[%emt 0:01:07] E05: Open Catalan: 5 Nf3 Be7} Rb8 {[%emt 0:31:58]} 14. Bxf6 {[%emt 0:06:09]} Bxf6 {[%emt 0:03:17]} 15. Ne4 {[%emt 0:05:31] [#]} Be7 $146 {[%emt 0:13:02]} ({Predecessor:} 15... Rb4 16. e3 Qd5 17. Rac1 Rfb8 18. Nc5 a5 19. Qe2 Be7 20. e4 Qd8 {½-½ (41) Illescas Cordoba,M (2600)-Beliavsky,A (2690) Madrid 1998}) 16. Qxc4 {[%emt 0:01:25]} Qd5 {[%emt 0:00:58]} 17. Qc2 {[%emt 0:01:05]} Rb4 {[%emt 0:09:51]} 18. Nc5 {[%emt 0:14:03]} Rc4 {[%emt 0:06:11]} 19. Qd3 {[%emt 0:03:49]} Bxc5 {[%emt 0:01:44]} 20. dxc5 {[%emt 0:00:06]} Qxd3 {[%emt 0:00:39]} 21. Rxd3 {[%emt 0:03:56]} Rxc5 {[%emt 0:00:15]} 22. Rb3 {[%emt 0:01:42]} Rc2 {[%emt 0:06:23]} 23. Rd1 {[%emt 0:09:17]} Rxe2 {[%emt 0:02:00]} 24. Rd7 {[%emt 0:02:05]} Re4 {[%emt 0:03:04]} 25. a5 {[%emt 0:01:47]} Ra4 {[%emt 0:01:18]} 26. Rxc7 {[%emt 0:00:12]} Rxa5 {[%emt 0:00:05]} 27. Rxc6 {[%emt 0:00:03]} Ra8 {[%emt 0:01:19]} 28. Rb7 {[%emt 0:00:31]} g6 {[%emt 0:00:31]} 29. Rcc7 {[%emt 0:00:27]} Rf5 {[%emt 0:00:40]} 30. b4 {[%emt 0:00:22]} h5 {[%emt 0:00:44]} 31. Ra7 {[%emt 0:04:14]} Rxa7 {[%emt 0:00:36]} 32. Rxa7 {[%emt 0:00:03]} Rb5 {[%emt 0:00:01]} 33. Rxa6 {[%emt 0:00:01]} Rxb4 {[%emt 0:00:03]} 34. h4 {[%emt 0:00:02]} Kg7 {[%emt 0:00:29]} 35. Ra7 {[%emt 0:00:26]} Kf6 {[%emt 0:00:26]} 36. Kg2 {[%emt 0:00:03]} Rb6 {[%emt 0:00:38]} 37. Ra5 {[%emt 0:00:27]} Rb7 {[%emt 0:00:52]} 38. Ra6 $1 $11 {[%emt 0:00:05] keeps the balance.} Kf5 {[%emt 0:00:12]} 39. Ra5+ {[%emt 0:00:20]} Kf6 {[%emt 0:00:38]} (39... e5 $17) 40. Kf3 {[%emt 0:00:30]} Rb3+ {[%emt 0:00:58]} 41. Kg2 {[%emt 0:00:38]} Rd3 {[%emt 0:00:19]} 42. Ra6 {[%emt 0:00:11]} Rd7 {[%emt 0:02:00]} 43. Kf3 {[%emt 0:00:11]} Kf5 {[%emt 0:00:26]} 44. Ra5+ {[%emt 0:00:43]} e5 {[%emt 0:00:52]} 45. Rb5 {[%emt 0:00:30]} Rc7 {[%emt 0:00:20]} 46. Ra5 {[%emt 0:00:08]} Rb7 {[%emt 0:00:06]} 47. Kg2 {[%emt 0:00:23]} Rd7 {[%emt 0:01:31]} 48. Kf3 {[%emt 0:00:07]} Ke6 {[%emt 0:00:10]} 49. Rb5 {[%emt 0:00:14]} Rd6 {[%emt 0:00:16]} 50. Ke4 {[%emt 0:00:25]} f5+ {[%emt 0:01:01]} 51. Kf3 {[%emt 0:00:09]} Kf6 {[%emt 0:00:23]} 52. Rb8 {[%emt 0:00:11]} Rd3+ {[%emt 0:00:46]} 53. Kg2 {[%emt 0:00:10]} e4 {[%emt 0:00:21]} 54. Rb6+ {[%emt 0:00:05]} Kf7 {[%emt 0:00:10]} 55. Rb7+ {[%emt 0:00:03]} Ke6 {[%emt 0:00:08]} 56. Rg7 {[%emt 0:00:26]} Kf6 {[%emt 0:00:04]} 57. Ra7 {[%emt 0:00:04]} Rd6 {[%emt 0:00:45]} 58. Ra8 {[%emt 0:01:22]} Ke5 {[%emt 0:00:34]} 59. Ra5+ {[%emt 0:00:11]} Kd4 {[%emt 0:00:06]} 60. Ra4+ {[%emt 0:00:09]} Kd3 {[%emt 0:00:28]} 61. Ra1 {[%emt 0:00:15]} Ke2 {[%emt 0:01:48]} 62. Ra2+ {[%emt 0:00:11]} Kd3 {[%emt 0:00:07]} 63. Ra1 {[%emt 0:00:01]} Kd4 {[%emt 0:00:05]} 64. Ra5 {[%emt 0:00:08]} Rc6 {[%emt 0:00:38]} 65. Ra3 {[%emt 0:00:24]} Ke5 {[%emt 0:00:37]} 66. Ra5+ {[%emt 0:00:08]} Kf6 {[%emt 0:00:01]} 67. Ra8 {[%emt 0:00:55]} Kg7 {[%emt 0:00:05]} 68. Ra7+ {[%emt 0:00:07]} Kf6 {[%emt 0:00:01]} 69. Ra8 {[%emt 0:00:15]} Re6 {[%emt 0:00:01]} 70. Ra3 {[%emt 0:00:11]} g5 {[%emt 0:00:33]} 71. hxg5+ {[%emt 0:00:10]} Kxg5 {[%emt 0:00:02]} 72. Ra8 {[%emt 0:00:01]} Rg6 {[%emt 0:00:01]} 73. Kh3 {[%emt 0:00:29]} Rg7 $11 {[%emt 0:00:31]} 74. Rb8 {[%emt 0:00:06]} 1/2-1/2

[Event "Gibraltar Junior Intl U16 2019"]
[Site "Caleta"]
[Date "2019.08.19"]
[Round "6.6"]
[White "Serrano Almendros, Alejandro"]
[Black "Gutierrez Lupion, Daniel"]
[Result "1-0"]
[ECO "E39"]
[WhiteElo "1922"]
[BlackElo "1811"]
[Annotator "NA"]
[PlyCount "51"]
[EventDate "2019.08.16"]
[EventType "swiss"]
[EventCountry "GGB"]
[SourceTitle "playchess.com"]
[Source "ChessBase"]
[SourceQuality "1"]
[TimeControl "6600+10"]

{[%evp 10,51,17,32767,32767,32767,58,72,60,66,83,73,32767,79,139,128,144,158,168,162,147,141,140,116,32767,129,138,120,32767,32767,143,32767,32767,32767,196,182,32767,32767,32767,204,32767,32767,32767,274]} 1. d4 {[%emt 0:00:00]} Nf6 {[%emt 0:00:00]} 2. c4 {[%emt 0:00:06]} e6 {[%emt 0:00:13]} 3. Nc3 {[%emt 0:00:06]} Bb4 {[%emt 0:00:10]} 4. Qc2 {[%emt 0:00:08]} O-O {[%emt 0:01:18]} 5. Bg5 {[%emt 0:01:40]} c5 {[%emt 0:05:39]} 6. dxc5 {[%emt 0:04:18]} Bxc5 {[%emt 0:00:36]} 7. Nf3 {[%emt 0:00:47]} d6 {[%emt 0:17:08] E39: Nimzo-Indian: Classical: 4...c5 5 dxc5 0-0} (7... b6 8. e3 Bb7 9. Bd3 h6 10. Bh4 Nc6 11. a3 Be7 12. O-O-O Rc8 13. Kb1 Na5 14. Qe2 d5 15. Ne5 {1-0 (42) Mamedyarov,S (2791)-Moskalenko,A (2522) Sochi 2017}) 8. a3 {[%emt 0:01:23]} h6 {[%emt 0:08:04]} 9. Bh4 {[%emt 0:01:33]} Nbd7 $146 {[%emt 0:01:35]} ({Predecessor:} 9... a5 10. e3 Bd7 11. Ne4 Bc6 12. Nxf6+ gxf6 13. Be2 a4 14. O-O {0-1 (43) Pennanen,E (2363)-Hoffmann,G (2335) ICCF email 2005}) 10. Rd1 {[%emt 0:04:25]} a5 {[%emt 0:05:19]} 11. e3 {[%emt 0:07:43]} Qb6 {[%emt 0:02:43]} 12. Be2 {[%emt 0:07:12]} Qc6 {[%emt 0:04:53]} 13. O-O {[%emt 0:02:02]} b6 {[%emt 0:05:16]} 14. Nd4 {[%emt 0:10:18]} Bxd4 {[%emt 0:00:53]} 15. Bf3 {[%emt 0:21:35]} ({Much less strong is} 15. exd4 Ba6 $14) 15... d5 {[%emt 0:01:56]} 16. cxd5 {[%emt 0:01:22]} Nxd5 {[%emt 0:01:46]} 17. Rxd4 {[%emt 0:00:29]} Bb7 {[%emt 0:02:56]} 18. Qd2 {[%emt 0:05:09]} Ne5 {[%emt 0:12:48]} 19. Bxd5 {[%emt 0:00:23]} exd5 {[%emt 0:00:13]} 20. Nxd5 {[%emt 0:00:32]} Kh8 {[%emt 0:00:44]} 21. Rc1 {[%emt 0:13:52]} Qg6 {[%emt 0:02:34]} 22. Bg3 {[%emt 0:00:16]} Nc6 {[%emt 0:03:20]} 23. Nf4 {[%emt 0:04:36]} Qf5 {[%emt 0:03:43]} 24. Rd5 {[%emt 0:02:53]} Qe4 {[%emt 0:03:43]} 25. f3 {[%emt 0:01:06]} Qa4 {[%emt 0:01:10]} 26. e4 $18 {[%emt 0:04:16]} 1-0

[Event "Gibraltar Junior Intl U16 2019"]
[Site "Caleta"]
[Date "2019.08.19"]
[Round "6.7"]
[White "Martinez Soriano, Javier"]
[Black "Greco, Joseph"]
[Result "1-0"]
[ECO "C00"]
[WhiteElo "1992"]
[BlackElo "1690"]
[Annotator "NA RC"]
[PlyCount "73"]
[EventDate "2019.08.16"]
[EventType "swiss"]
[EventCountry "GGB"]
[SourceTitle "playchess.com"]
[Source "ChessBase"]
[SourceQuality "1"]
[TimeControl "6600+10"]

{[%evp 8,73,-5,-15,32767,32767,32767,32767,32767,-45,32767,32767,32767,32767,32767,32767,32767,-66,-79,-128,32767,-97,-104,-106,-113,32767,-134,-145,-117,-130,-107,32767,22,32767,38,9,170,105,304,312,418,32767,423,32767,426,457,658,661,32767,779,696,741,932,916,852,32767,32767,32767,32767,32767,32767,32767,32767,32767,32767,1052,1249,1279]} 1. e4 {[%emt 0:00:00]} e6 {[%emt 0:00:00]} 2. d3 {[%emt 0:00:01]} d5 {[%emt 0:00:01]} 3. Qe2 {[%emt 0:00:06]} Nf6 {[%emt 0:00:09]} 4. e5 {[%emt 0:00:28]} Nfd7 {[%emt 0:00:16]} 5. Nf3 {[%emt 0:00:05]} c5 {[%emt 0:01:20]} 6. g3 {[%emt 0:00:45] C00: French: Unusual White 2nd moves} b5 {[%emt 0:03:10]} 7. Bg2 {[%emt 0:00:28]} Nc6 {[%emt 0:01:02]} 8. c4 $146 {[%emt 0:02:00]} ({Predecessor:} 8. O-O Be7 9. h4 a5 10. c3 a4 11. Bf4 c4 12. Nd4 cxd3 13. Qe3 Nxd4 14. cxd4 Nb6 15. Nd2 {0-1 (43) Neuman,P (2499)-Almasi,Z (2707) Germany 2013}) 8... bxc4 {[%emt 0:01:29]} 9. dxc4 {[%emt 0:00:20]} Ba6 {[%emt 0:00:19]} 10. b3 {[%emt 0:00:41]} Be7 {[%emt 0:04:39]} 11. O-O {[%emt 0:02:05]} O-O {[%emt 0:00:28]} 12. Bb2 {[%emt 0:00:56]} Rb8 {[%emt 0:06:44]} 13. Nbd2 {[%emt 0:07:21]} (13. Rd1 $15) 13... Nb6 {[%emt 0:07:34]} 14. Ba3 {[%emt 0:03:06]} Qc7 {[%emt 0:01:44]} 15. Rfc1 {[%emt 0:04:21]} Rfd8 {[%emt 0:01:44]} 16. Qe3 {[%emt 0:02:18]} d4 {[%emt 0:00:56]} 17. Qf4 {[%emt 0:00:18]} Bb7 {[%emt 0:08:25]} 18. Ne4 {[%emt 0:02:40] [#]} Nd7 $1 {[%emt 0:03:24]} 19. Nd6 {[%emt 0:00:54]} Ndxe5 {[%emt 0:09:07]} (19... Bxd6 $17 20. exd6 Qa5) 20. Nxb7 {[%emt 0:00:13]} Nxf3+ {[%emt 0:01:37]} 21. Qxf3 {[%emt 0:00:20]} Ne5 {[%emt 0:00:25] [#]} (21... Rdc8 $1 $14) 22. Qe4 {[%emt 0:01:57]} (22. Qf4 $1 $18 Rd7 23. Re1) 22... f5 $2 {[%emt 0:02:25]} (22... Rd7 $16 {is a better defense.}) 23. Qe2 {[%emt 0:01:54]} d3 {[%emt 0:05:06]} 24. Qe3 {[%emt 0:00:21]} d2 {[%emt 0:05:29]} 25. Rd1 {[%emt 0:01:20]} Rd3 {[%emt 0:02:26]} 26. Qe2 {[%emt 0:00:22]} Rxb7 {[%emt 0:11:41]} (26... Rd7 $142 27. Bb2 (27. Rxd2 Rxd2 28. Qxd2 Rxb7 $18) 27... Bf6 28. Rxd2 Rxd2 29. Qxd2 Rxb7 30. Bxb7 Qxb7 31. Bxe5 Bxe5) 27. Bxb7 {[%emt 0:00:48]} Qd6 {[%emt 0:00:10]} 28. Bb2 {[%emt 0:03:08]} Bf6 {[%emt 0:06:16]} 29. Rab1 {[%emt 0:04:44]} Nd7 {[%emt 0:04:32]} 30. Bxf6 {[%emt 0:00:21]} Nxf6 {[%emt 0:00:42]} 31. Bd5 {[%emt 0:00:17]} Rd4 {[%emt 0:05:30]} 32. Qxe6+ {[%emt 0:00:20]} Qxe6 {[%emt 0:00:10]} 33. Bxe6+ {[%emt 0:00:07]} Kf8 {[%emt 0:00:01]} 34. Bxf5 {[%emt 0:00:15]} g6 {[%emt 0:00:13]} 35. Bh3 {[%emt 0:00:16]} Ne4 {[%emt 0:00:12]} 36. Rb2 {[%emt 0:00:07]} Rd3 $18 {[%emt 0:01:22]} 37. Bg2 {[%emt 0:00:21]} 1-0

[Event "Gibraltar Junior Intl U16 2019"]
[Site "Caleta"]
[Date "2019.08.19"]
[Round "6.8"]
[White "Volovich, Julia"]
[Black "Howell, Oliver W"]
[Result "1-0"]
[ECO "A65"]
[WhiteElo "1726"]
[BlackElo "1847"]
[Annotator "NA"]
[PlyCount "47"]
[EventDate "2019.08.16"]
[EventType "swiss"]
[EventCountry "GGB"]
[SourceTitle "playchess.com"]
[Source "ChessBase"]
[SourceQuality "1"]
[TimeControl "6600+10"]

{[%evp 10,45,33,29,56,32767,32767,32767,32767,39,32767,32767,32767,42,42,32767,37,32767,32767,32767,32767,57,32767,60,33,32767,78,20,32767,17,97,121,102,32767,32767,32767,32767,-4]} 1. d4 {[%emt 0:00:00]} Nf6 {[%emt 0:00:00]} 2. c4 {[%emt 0:00:00]} g6 {[%emt 0:00:04]} 3. Nc3 {[%emt 0:00:00]} Bg7 {[%emt 0:00:05]} 4. e4 {[%emt 0:00:02]} d6 {[%emt 0:00:06]} 5. Nge2 {[%emt 0:00:05]} O-O {[%emt 0:00:20]} 6. Ng3 {[%emt 0:00:06]} c5 {[%emt 0:00:24]} 7. d5 {[%emt 0:00:05]} e6 {[%emt 0:00:34]} 8. Be2 {[%emt 0:00:11]} exd5 {[%emt 0:00:36]} 9. cxd5 {[%emt 0:00:07]} a6 {[%emt 0:00:48]} 10. a4 {[%emt 0:00:06]} Re8 {[%emt 0:00:54] A65: Modern Benoni: 6 e4} 11. O-O {[%emt 0:00:57]} Nbd7 {[%emt 0:00:37]} 12. f3 {[%emt 0:07:17]} h5 {[%emt 0:06:01]} (12... Rb8 13. Bg5 Qc7 14. Qd2 c4 15. Bh6 Bh8 16. Kh1 b5 17. axb5 axb5 {1-0 (60) Gupta,A (2581)-Martirosyan,H (2607) chess.com INT 2019}) 13. Bg5 {[%emt 0:00:17]} Qb6 {[%emt 0:03:15]} 14. Qd2 {[%emt 0:09:44]} Nh7 {[%emt 0:04:13]} 15. Be3 {[%emt 0:04:51]} f5 {[%emt 0:14:16]} 16. Rfe1 $146 {[%emt 0:26:44]} ({Predecessor:} 16. Rfb1) 16... h4 {[%emt 0:08:22]} 17. Nh1 {[%emt 0:05:43]} fxe4 {[%emt 0:07:20]} 18. fxe4 {[%emt 0:02:29]} Bd4 {[%emt 0:15:09]} 19. Nf2 {[%emt 0:14:11]} Nhf6 {[%emt 0:00:24]} (19... Ne5 $14) 20. a5 {[%emt 0:02:03]} Qb4 {[%emt 0:17:43]} 21. Qc2 {[%emt 0:20:48]} b5 {[%emt 0:01:39]} 22. Bxd4 {[%emt 0:03:41]} Qxd4 {[%emt 0:01:38]} 23. Rad1 $11 {[%emt 0:02:45]} Qe5 {[%emt 0:00:39]} 24. Qd2 {[%emt 0:01:49]} 1-0

[Event "Gibraltar Junior Intl U16 2019"]
[Site "Caleta"]
[Date "2019.08.19"]
[Round "6.9"]
[White "Lorente Serrano, Rosa Adela"]
[Black "Usharovsky, Ron"]
[Result "1-0"]
[ECO "C00"]
[WhiteElo "1810"]
[BlackElo "1670"]
[Annotator "NA RC"]
[PlyCount "73"]
[EventDate "2019.08.16"]
[EventType "swiss"]
[EventCountry "GGB"]
[SourceTitle "playchess.com"]
[Source "ChessBase"]
[SourceQuality "1"]
[TimeControl "6600+10"]

{[%evp 10,65,0,32767,32767,32767,32767,32767,32767,-15,-13,32767,-18,-24,-8,-12,0,13,18,32767,35,20,25,15,29,18,79,86,32767,63,32767,76,81,32767,74,71,81,32767,75,77,75,32767,32767,32767,32767,32767,32767,181,489,32767,742,876,32767,775,874,1000,29985,29986]} 1. Nf3 {[%emt 0:00:02]} Nf6 {[%emt 0:00:01]} 2. g3 {[%emt 0:00:17]} d5 {[%emt 0:00:16]} 3. Bg2 {[%emt 0:00:41]} c5 {[%emt 0:00:33]} 4. O-O {[%emt 0:01:46]} Nc6 {[%emt 0:00:20]} 5. d3 {[%emt 0:00:45]} e6 {[%emt 0:01:01]} 6. Nbd2 {[%emt 0:00:45]} Be7 {[%emt 0:03:30]} 7. e4 {[%emt 0:02:15]} O-O {[%emt 0:02:25]} 8. Re1 {[%emt 0:01:30]} d4 {[%emt 0:07:05]} 9. a4 {[%emt 0:04:18]} (9. e5 $5 {[%cal Re5f6]} Nd5 10. a4 $11) 9... e5 {[%emt 0:03:34]} 10. Nc4 {[%emt 0:02:03]} Qc7 {[%emt 0:01:27]} 11. Rf1 {[%emt 0:05:08] C00: French: Unusual White 2nd moves} Be6 $146 {[%emt 0:02:45]} ({Predecessor:} 11... h6 12. Nh4 {1-0 (56) Roberts,L (1914)-Farha,D Istanbul 2012}) 12. b3 {[%emt 0:02:32]} a6 {[%emt 0:02:26]} 13. Ng5 {[%emt 0:00:22]} Bg4 {[%emt 0:08:19]} 14. f3 {[%emt 0:03:41]} Bd7 {[%emt 0:02:19]} 15. a5 {[%emt 0:01:11]} h6 {[%emt 0:06:31]} 16. Nh3 {[%emt 0:00:08]} Be6 {[%emt 0:01:16]} 17. Bd2 {[%emt 0:00:15]} b5 {[%emt 0:09:09]} 18. axb6 {[%emt 0:03:28]} Qd7 {[%emt 0:01:12]} 19. Nf2 {[%emt 0:00:25]} Rfb8 {[%emt 0:01:25]} 20. Na3 {[%emt 0:08:01]} Rxb6 {[%emt 0:02:25]} 21. f4 {[%emt 0:00:38]} Qc8 {[%emt 0:03:31]} 22. f5 {[%emt 0:00:27]} Bd7 {[%emt 0:01:16]} 23. Nc4 {[%emt 0:00:35]} Rbb8 {[%emt 0:01:30]} 24. Ng4 {[%emt 0:07:50]} Nxg4 {[%emt 0:17:09]} 25. Qxg4 {[%emt 0:00:08]} Kh7 {[%emt 0:00:55]} 26. Qh5 {[%emt 0:01:22]} f6 {[%emt 0:04:39]} 27. Qg6+ {[%emt 0:01:18]} Kh8 {[%emt 0:00:16] [#]} 28. Bxh6 $1 {[%emt 0:23:53]} gxh6 $2 {[%emt 0:01:34]} (28... Qf8) 29. Nd6 {[%emt 0:00:11]} Bxd6 $2 {[%emt 0:01:07]} (29... Qf8 30. Nf7+ Qxf7 31. Qxf7 Be8) 30. Qxf6+ {[%emt 0:00:04]} Kg8 {[%emt 0:03:36] [#]} 31. Qg6+ $1 {[%emt 0:01:48]} ({Less strong is} 31. Qxd6 Be8 $16) 31... Kf8 {[%emt 0:01:09]} 32. Qxd6+ {[%emt 0:00:05] Double Attack} Kg8 {[%emt 0:02:16]} 33. Qg6+ {[%emt 0:00:27]} Kf8 {[%emt 0:00:38]} 34. f6 {[%emt 0:00:18]} Be6 {[%emt 0:01:11]} 35. Qg7+ {[%emt 0:00:09]} Ke8 {[%emt 0:00:19]} 36. f7+ {[%emt 0:00:04]} Bxf7 {[%emt 0:00:21]} 37. Rxf7 {[%emt 0:00:06]} 1-0

[Event "Gibraltar Junior Intl U16 2019"]
[Site "Caleta"]
[Date "2019.08.19"]
[Round "6.10"]
[White "Aubury, Benjamin"]
[Black "Gogia, Armaan"]
[Result "1/2-1/2"]
[ECO "E62"]
[WhiteElo "1686"]
[BlackElo "1754"]
[Annotator "NA RC"]
[PlyCount "56"]
[EventDate "2019.08.16"]
[EventType "swiss"]
[EventCountry "GGB"]
[SourceTitle "playchess.com"]
[Source "ChessBase"]
[SourceQuality "1"]
[TimeControl "6600+10"]

1. d4 {[%emt 0:00:23]} Nf6 {[%emt 0:05:04]} 2. c4 {[%emt 0:00:28]} g6 {[%emt 0:00:04]} 3. g3 {[%emt 0:00:07]} Bg7 {[%emt 0:00:18]} 4. Bg2 {[%emt 0:00:20]} O-O {[%emt 0:00:20]} 5. Nc3 {[%emt 0:00:03]} d6 {[%emt 0:00:16]} 6. Nf3 {[%emt 0:00:04]} Nc6 {[%emt 0:00:10]} 7. O-O {[%emt 0:00:09]} e5 {[%emt 0:00:01]} 8. dxe5 {[%emt 0:00:06]} Nxe5 {[%emt 0:00:04]} 9. b3 {[%emt 0:01:17]} c6 {[%emt 0:09:29]} 10. Nxe5 {[%emt 0:09:27]} dxe5 {[%emt 0:00:10]} 11. Qxd8 {[%emt 0:00:54]} Rxd8 {[%emt 0:00:04]} 12. Bg5 {[%emt 0:00:07]} h6 {[%emt 0:03:06]} 13. Be3 {[%emt 0:03:15]} Ng4 {[%emt 0:06:05]} 14. Rad1 {[%emt 0:12:36]} Bf5 {[%emt 0:05:56]} 15. Bc5 {[%emt 0:08:39]} Bf8 {[%emt 0:04:23]} 16. Bxf8 {[%emt 0:07:21]} Kxf8 {[%emt 0:00:24]} 17. Be4 {[%emt 0:02:53]} Ke7 {[%emt 0:05:20]} 18. Bxf5 {[%emt 0:04:54]} gxf5 {[%emt 0:00:30]} 19. Na4 {[%emt 0:06:23]} b6 {[%emt 0:01:39]} 20. Nb2 {[%emt 0:02:23]} e4 {[%emt 0:02:20]} 21. h3 {[%emt 0:02:41]} Ne5 {[%emt 0:01:56]} 22. Na4 {[%emt 0:05:48]} Rg8 {[%emt 0:07:43]} 23. Kh2 {[%emt 0:05:58]} Rad8 {[%emt 0:00:38]} 24. Nc3 {[%emt 0:00:49]} Ke6 {[%emt 0:06:18]} 25. Rxd8 {[%emt 0:01:19]} Rxd8 {[%emt 0:00:18]} 26. Rd1 {[%emt 0:00:22]} Rxd1 {[%emt 0:03:40]} 27. Nxd1 {[%emt 0:00:10]} a5 {[%emt 0:00:01]} 28. Ne3 {[%emt 0:00:55]} Ng6 {[%emt 0:02:47]} 1/2-1/2

[Event "Gibraltar Junior Intl U16 2019"]
[Site "Caleta"]
[Date "2019.08.19"]
[Round "6.11"]
[White "Onslow, Teddy"]
[Black "Hirst, Joe"]
[Result "1/2-1/2"]
[ECO "E61"]
[WhiteElo "1739"]
[BlackElo "1639"]
[Annotator "NA RC"]
[PlyCount "48"]
[EventDate "2019.08.16"]
[EventType "swiss"]
[EventCountry "GGB"]
[SourceTitle "playchess.com"]
[Source "ChessBase"]
[SourceQuality "1"]
[TimeControl "6600+10"]

1. d4 {[%emt 0:00:00]} Nf6 {[%emt 0:00:00]} 2. Nf3 {[%emt 0:00:03]} g6 {[%emt 0:00:00]} 3. Bf4 {[%emt 0:00:05]} Bg7 {[%emt 0:00:06]} 4. e3 {[%emt 0:00:08]} O-O {[%emt 0:00:07]} 5. h3 {[%emt 0:00:05]} c5 {[%emt 0:00:10]} 6. c4 {[%emt 0:02:09]} d6 {[%emt 0:01:14]} 7. Be2 {[%emt 0:00:21]} b6 {[%emt 0:00:36]} 8. Nc3 {[%emt 0:01:09]} Bb7 {[%emt 0:00:56]} 9. O-O {[%emt 0:00:27]} Nbd7 {[%emt 0:00:34]} 10. a3 {[%emt 0:04:08]} a6 {[%emt 0:04:02]} 11. Qd2 {[%emt 0:03:26]} Ne4 {[%emt 0:05:28]} 12. Nxe4 {[%emt 0:00:44]} Bxe4 {[%emt 0:00:09]} 13. Rfd1 {[%emt 0:01:05]} Qc7 {[%emt 0:04:33]} 14. Rac1 {[%emt 0:04:48]} Rfd8 {[%emt 0:05:54]} 15. b4 {[%emt 0:04:26]} Qa7 {[%emt 0:03:53]} 16. a4 {[%emt 0:15:34]} a5 {[%emt 0:04:54]} 17. b5 {[%emt 0:03:59]} Rac8 {[%emt 0:02:23]} 18. Ng5 {[%emt 0:13:04]} Ba8 {[%emt 0:03:00]} 19. d5 {[%emt 0:04:17]} Nf6 {[%emt 0:14:25]} 20. Bd3 {[%emt 0:14:13]} h6 {[%emt 0:02:36]} 21. Ne4 {[%emt 0:00:57]} Nxe4 {[%emt 0:11:45]} 22. Bxe4 {[%emt 0:00:27]} e5 {[%emt 0:01:49]} 23. Bg3 {[%emt 0:05:02]} f5 {[%emt 0:00:33]} 24. Bc2 {[%emt 0:02:50]} Qf7 {[%emt 0:02:43]} 1/2-1/2